bitfinex-derivatives/quotes_BTCF0:USTF0_20210104
["timestamp","ask_amount","ask_price","bid_price","bid_amount"]
[1609803969657,0.67999926,31936.0,31922.0,3.8409]
[1609803969857,0.67997542,31935.0,31922.0,3.8409]
[1609803970056,0.83514542,31935.0,31922.0,3.8409]
[1609803970459,0.15517,31935.0,31922.0,3.8409]
[1609803971356,0.15517,31935.0,31910.0,0.09786]
[1609803971357,0.15517,31935.0,31934.0,0.13632608]
[1609803971759,0.15517,31935.0,31934.0,4.54992608]
[1609803972157,0.67995481,31938.0,31934.0,4.54992608]
[1609803972957,0.67995481,31938.0,31934.0,4.4136]
[1609803973357,0.67995481,31938.0,31931.0,0.12428]
[1609803973557,0.67995481,31938.0,31937.0,4.28502608]
[1609803973957,0.67995481,31938.0,31937.0,0.13632608]
[1609803974958,0.49975481,31938.0,31937.0,5.1978]
[1609803975558,0.49975481,31938.0,31937.0,5.33412608]
[1609803976560,0.56601428,31940.0,31937.0,5.33412608]
[1609803977062,0.83006626,31944.0,31937.0,5.33412608]
[1609803977260,0.83006626,31944.0,31937.0,5.1978]
[1609803977861,0.02173602,31956.0,31937.0,5.1978]
[1609803977862,0.02173602,31956.0,31943.0,0.13632608]
[1609803978061,0.02173602,31956.0,31931.0,0.12428]
[1609803978262,0.02173602,31956.0,31954.0,4.6124]
[1609803979963,0.02173602,31956.0,31955.0,0.13632608]
[1609803988071,0.02173602,31956.0,31943.0,0.10361]
[1609803988473,0.02173602,31956.0,31955.0,0.13632608]
[1609803990075,0.02173602,31956.0,31943.0,0.11791]
[1609803990976,0.02173602,31956.0,31955.0,0.13632608]
[1609803991279,0.02173602,31956.0,31933.0,5.0254]
[1609803993078,0.02173602,31956.0,31947.0,0.13632608]
[1609803993278,0.02173602,31956.0,31933.0,5.0254]
[1609803995477,0.02173602,31956.0,31949.0,0.13632608]
[1609803997480,0.13632608,31950.0,31949.0,0.13632608]
[1609803999583,0.02173602,31956.0,31933.0,5.15304]
[1609804000285,0.02173602,31956.0,31955.0,0.13632608]
[1609804000884,0.02173602,31956.0,31940.0,0.14304]
[1609804002284,0.02173602,31956.0,31941.0,0.7127]
[1609804002484,0.02173602,31956.0,31955.0,0.13632608]
[1609804002887,0.02173602,31956.0,31940.0,0.14304]
[1609804003485,0.02173602,31956.0,31950.0,4.4421]
[1609804004287,0.02173602,31956.0,31955.0,0.13632608]
[1609804005289,0.02173602,31956.0,31943.0,4.8333]
[1609804005490,0.02173602,31956.0,31947.0,0.1476]
[1609804006489,0.1580621,31956.0,31955.0,0.13632608]
[1609804006889,0.02173602,31956.0,31955.0,0.13632608]
[1609804007790,0.02173602,31956.0,31943.0,4.8333]
[1609804007992,0.02173602,31956.0,31940.0,0.14304]
[1609804008192,0.02173602,31956.0,31933.0,0.12764]
[1609804008393,0.02173602,31956.0,31926.0,3.9657]
[1609804008593,0.13632608,31936.0,31935.0,0.13632608]
[1609804009392,0.13922,31950.0,31926.0,3.9657]
[1609804010496,0.13922,31950.0,31934.0,0.13632608]
[1609804010995,0.13922,31950.0,31932.0,0.13176]
[1609804012798,0.13922,31950.0,31940.0,0.13632608]
[1609804013500,0.13922,31950.0,31932.0,0.13176]
[1609804014599,0.14153,31950.0,31932.0,0.13176]
[1609804014901,0.14153,31950.0,31938.0,0.13632608]
[1609804015500,0.14153,31950.0,31932.0,0.13176]
[1609804015700,0.14153,31950.0,31915.0,5.2203]
[1609804016902,0.14153,31950.0,31925.0,0.13632608]
[1609804018203,0.14153,31950.0,31925.0,3.5047]
[1609804019004,0.14153,31950.0,31940.0,0.13632608]
[1609804019403,0.14153,31950.0,31942.0,3.8698]
[1609804019606,0.02173602,31956.0,31942.0,3.8698]
[1609804021007,0.02173602,31956.0,31955.0,0.13632608]
[1609804022006,0.02173602,31956.0,31952.0,0.13131]
[1609804023008,0.02173602,31956.0,31955.0,0.13632608]
[1609804023208,0.02173602,31956.0,31955.0,3.68122608]
[1609804023911,0.10623,31972.0,31955.0,3.68122608]
[1609804024113,0.56385019,31990.0,31955.0,3.68122608]
[1609804024312,0.56385019,31990.0,31955.0,0.13632608]
[1609804024515,0.56385019,31990.0,31968.0,3.8787]
[1609804025111,0.56385019,31990.0,31989.0,0.13632608]
[1609804025311,0.56385019,31990.0,31964.0,0.11979]
[1609804025512,0.68516019,31990.0,31964.0,0.11979]
[1609804026918,0.12131,31990.0,31964.0,0.11979]
[1609804027115,0.12131,31990.0,31987.0,0.13632608]
[1609804027714,0.12131,31990.0,31971.0,0.15263]
[1609804029115,0.12131,31990.0,31979.0,0.13632608]
[1609804030216,0.12131,31990.0,31971.0,0.15263]
[1609804030515,0.2707,31991.0,31971.0,0.15263]
[1609804030716,0.133,31990.0,31971.0,0.15263]
[1609804031117,0.13632608,31972.0,31971.0,0.15263]
[1609804032718,0.13632608,31972.0,31964.0,0.11979]
[1609804033119,0.13632608,31965.0,31957.0,0.13632608]
[1609804033717,0.25813608,31965.0,31957.0,0.13632608]
[1609804034620,0.12181,31965.0,31947.0,4.2837]
[1609804035020,0.12181,31965.0,31958.0,0.13632608]
[1609804035420,0.12181,31965.0,31947.0,4.2837]
[1609804037020,0.13632608,31948.0,31947.0,4.2837]
[1609804039735,0.14226,31955.0,31947.0,4.2837]
[1609804039937,0.12181,31965.0,31947.0,4.2837]
[1609804040130,0.84197996,31973.0,31947.0,4.2837]
[1609804040826,0.56687996,31973.0,31947.0,4.2837]
[1609804042430,0.13632608,31963.0,31961.0,0.13632608]
[1609804043730,0.13632608,31963.0,31947.0,4.2837]
[1609804044431,0.66530413,31974.0,31951.0,0.13632608]
[1609804044830,0.66530413,31974.0,31947.0,4.2837]
[1609804045332,0.56707666,31973.0,31947.0,4.2837]
[1609804046332,0.0986,31974.0,31956.0,0.13632608]
[1609804046532,0.56710962,31975.0,31956.0,0.13632608]
[1609804048137,0.56710962,31975.0,31953.0,0.15226]
[1609804048333,0.13632608,31954.0,31953.0,0.15226]
[1609804051034,0.13632608,31954.0,31952.0,0.13632608]
[1609804054337,0.13632608,31954.0,31946.0,0.12782]
[1609804054537,0.13632608,31954.0,31939.0,0.10314]
[1609804054738,4.7911,31955.0,31921.0,3.8748]
[1609804054939,4.7911,31955.0,31933.0,2.10276332]
[1609804055741,4.7911,31955.0,31933.0,0.11808]
[1609804055939,4.7911,31955.0,31932.0,1.98145858]
[1609804056342,0.274,31960.0,31926.0,0.13587]
[1609804056343,5.1136,31945.0,31926.0,0.13587]
[1609804056540,5.21611,31945.0,31923.0,0.02098168]
[1609804057041,0.56719127,31944.0,31923.0,0.02098168]
[1609804057542,0.56719127,31944.0,31906.0,4.4536]
[1609804057743,0.13632608,31907.0,31902.0,0.13632608]
[1609804058143,0.14986,31918.0,31897.0,1.9815511]
[1609804058343,0.14986,31918.0,31893.0,1.98428911]
[1609804058542,0.14986,31918.0,31897.0,0.11455]
[1609804060446,0.14986,31918.0,31908.0,0.13632608]
[1609804060647,0.14986,31918.0,31897.0,0.11455]
[1609804062350,0.14986,31918.0,31908.0,0.13632608]
[1609804063050,0.01909353,31932.0,31908.0,0.13632608]
[1609804063249,0.01909353,31932.0,31908.0,0.27200608]
[1609804064452,0.58365072,31936.0,31908.0,0.13568]
[1609804065551,0.2986,31938.0,31908.0,0.13568]
[1609804065950,0.2986,31938.0,31913.0,4.3994]
[1609804066350,0.2986,31938.0,31930.0,0.13632608]
[1609804067267,0.2986,31938.0,31917.0,0.10155]
[1609804067457,0.43245,31938.0,31917.0,0.10155]
[1609804068353,0.43245,31938.0,31930.0,0.13632608]
[1609804068553,0.43245,31938.0,31917.0,0.10155]
[1609804070256,0.43245,31938.0,31918.0,4.8428]
[1609804070454,0.13632608,31919.0,31918.0,4.8428]
[1609804070864,0.12105,31930.0,31918.0,4.8428]
[1609804071269,0.12105,31930.0,31917.0,0.10155]
[1609804071664,0.12105,31930.0,31908.0,0.13568]
[1609804071861,0.12105,31930.0,31901.0,4.1269]
[1609804072764,0.12105,31930.0,31906.0,0.13632608]
[1609804074762,0.12105,31930.0,31915.0,0.13632608]
[1609804075666,0.43245,31938.0,31915.0,0.13632608]
[1609804076164,0.43245,31938.0,31908.0,4.1416]
[1609804076766,0.43245,31938.0,31911.0,0.13632608]
[1609804077570,0.43245,31938.0,31908.0,4.1416]
[1609804078272,1.16075,31938.0,31908.0,4.1416]
[1609804078872,0.13632608,31909.0,31896.0,0.13632608]
[1609804079072,0.26059608,31909.0,31896.0,0.13632608]
[1609804079272,0.12427,31909.0,31894.0,1.96159841]
[1609804079873,0.12427,31909.0,31882.0,4.8211]
[1609804079874,0.12427,31909.0,31887.0,1.96583967]
[1609804080679,4.57977,31909.0,31887.0,1.96583967]
[1609804080878,0.13632608,31888.0,31887.0,1.96583967]
[1609804081380,0.28983608,31888.0,31887.0,1.96583967]
[1609804083184,0.15351,31888.0,31887.0,1.96583967]
[1609804083387,3.5564,31908.0,31887.0,1.96583967]
[1609804083586,0.12427,31909.0,31887.0,2.10696967]
[1609804083985,3.6743,31930.0,31887.0,2.10696967]
[1609804084585,0.2991,31929.0,31887.0,2.10696967]
[1609804084785,0.40047,31929.0,31917.0,0.13632608]
[1609804085586,0.10137,31929.0,31917.0,0.13632608]
[1609804086001,0.10137,31929.0,31911.0,0.13253]
[1609804086887,0.10137,31929.0,31916.0,0.13632608]
[1609804087395,0.10137,31929.0,31911.0,0.13253]
[1609804088591,0.10137,31929.0,31903.0,0.13783]
[1609804089189,0.10137,31929.0,31916.0,0.13632608]
[1609804089692,0.2896,31946.0,31903.0,0.13783]
[1609804089890,0.2896,31946.0,31892.0,4.8516]
[1609804090093,0.2896,31946.0,31897.0,0.12265]
[1609804091293,0.2896,31946.0,31908.0,0.13632608]
[1609804091492,0.2896,31946.0,31897.0,0.12265]
[1609804091691,0.11761146,31942.0,31897.0,0.12265]
[1609804093296,0.11761146,31942.0,31910.0,0.13632608]
[1609804093596,0.11761146,31942.0,31897.0,0.12265]
[1609804094996,0.11761146,31942.0,31887.0,2.10696967]
[1609804095396,0.11761146,31942.0,31927.0,0.13632608]
[1609804096597,0.11761146,31942.0,31923.0,0.11856]
[1609804096796,0.11761146,31942.0,31932.0,5.0873]
[1609804096997,0.58112742,31936.0,31932.0,5.0873]
[1609804097396,0.58112742,31936.0,31935.0,0.13632608]
[1609804097596,0.58112742,31936.0,31932.0,5.0873]
[1609804097796,0.58112742,31936.0,31923.0,0.11856]
[1609804097997,0.09864,31942.0,31923.0,0.11856]
[1609804098196,0.2878,31959.0,31923.0,0.11856]
[1609804098400,0.01893933,31969.0,31923.0,0.11856]
[1609804098598,0.01893933,31969.0,31934.0,3.6745]
[1609804099398,0.56274178,31970.0,31934.0,3.6745]
[1609804099399,0.86505548,31968.0,31934.0,3.6745]
[1609804099997,0.58165548,31968.0,31934.0,3.6745]
[1609804101300,0.13632608,31961.0,31960.0,0.13632608]
[1609804107707,0.13632608,31961.0,31931.0,0.11174]
[1609804107908,0.13632608,31961.0,31923.0,5.31056]
[1609804108108,4.91797,31970.0,31923.0,5.31056]
[1609804109310,0.13632608,31940.0,31935.0,0.13632608]
[1609804109510,0.14942,31948.0,31935.0,0.13632608]
[1609804110709,4.91797,31970.0,31935.0,0.13632608]
[1609804111309,4.91797,31970.0,31943.0,0.13632608]
[1609804111710,4.91797,31970.0,31939.0,0.09975]
[1609804112612,4.91797,31970.0,31923.0,5.192]
[1609804113410,4.91797,31970.0,31932.0,0.13632608]
[1609804113615,0.58175033,31963.0,31932.0,0.13632608]
[1609804113812,0.69881033,31963.0,31932.0,0.13632608]
[1609804114012,0.69881033,31963.0,31924.0,0.12202]
[1609804114212,0.2802,31962.0,31924.0,0.12202]
[1609804114411,0.5699,31962.0,31924.0,0.12202]
[1609804115413,0.5699,31962.0,31931.0,0.13632608]
[1609804115614,0.5699,31962.0,31924.0,0.12202]
[1609804116415,0.588842,31962.0,31924.0,0.12202]
[1609804117114,0.5173,31958.0,31924.0,0.12202]
[1609804117416,0.5173,31958.0,31935.0,0.13632608]
[1609804117814,0.5173,31958.0,31924.0,0.12202]
[1609804118014,0.588842,31962.0,31924.0,0.12202]
[1609804118215,4.455,31956.0,31915.0,0.11078]
[1609804118415,0.1258,31956.0,31903.0,1.91872661]
[1609804118615,4.9671,31953.0,31904.0,4.7301]
[1609804119418,4.9671,31953.0,31928.0,0.13632608]
[1609804119717,4.9671,31953.0,31904.0,4.7301]
[1609804119718,4.9671,31953.0,31915.0,0.1558]
[1609804121419,4.9671,31953.0,31926.0,0.13632608]
[1609804121619,0.1258,31956.0,31926.0,0.13632608]
[1609804122221,0.746,31951.0,31926.0,0.13632608]
[1609804122422,0.1258,31956.0,31926.0,0.13632608]
[1609804122621,4.6378,31951.0,31926.0,0.13632608]
[1609804122821,0.1258,31956.0,31915.0,0.1558]
[1609804123021,4.3785,31949.0,31915.0,0.1558]
[1609804123321,4.51166,31949.0,31915.0,0.1558]
[1609804123522,4.51166,31949.0,31920.0,0.13632608]
[1609804124320,4.51166,31949.0,31915.0,0.1558]
[1609804124721,4.51166,31949.0,31905.0,3.9074]
[1609804125424,4.51166,31949.0,31913.0,0.13632608]
[1609804126824,4.51166,31949.0,31914.0,0.6581]
[1609804127527,0.13316,31949.0,31911.0,0.144]
[1609804127726,0.13632608,31927.0,31924.0,0.13632608]
[1609804128125,0.11175,31929.0,31924.0,0.13632608]
[1609804128326,0.14791,31938.0,31924.0,0.13632608]
[1609804128525,0.14791,31938.0,31923.0,3.7456]
[1609804129227,0.1258,31956.0,31923.0,3.7456]
[1609804129427,0.02856485,31957.0,31923.0,3.7456]
[1609804129827,0.02856485,31957.0,31937.0,0.13632608]
[1609804130327,0.46985798,31947.0,31937.0,0.13632608]
[1609804131426,0.61575798,31947.0,31937.0,0.13632608]
[1609804131627,0.61575798,31947.0,31923.0,3.7456]
[1609804132027,0.1459,31947.0,31923.0,3.7456]
[1609804132229,0.1459,31947.0,31930.0,0.13632608]
[1609804132630,4.9162,31946.0,31920.0,0.13672]
[1609804133229,4.9162,31946.0,31912.0,3.9132]
[1609804133629,0.275,31945.0,31912.0,3.9132]
[1609804134030,0.5507,31945.0,31912.0,3.9132]
[1609804134231,0.5507,31945.0,31924.0,0.13632608]
[1609804136132,0.13632608,31925.0,31924.0,0.13632608]
[1609804136933,0.14397,31928.0,31924.0,0.13632608]
[1609804137534,0.5507,31945.0,31924.0,0.13632608]
[1609804137941,0.275,31945.0,31924.0,0.13632608]
[1609804138135,0.13632608,31938.0,31933.0,0.13632608]
[1609804138533,0.28248608,31938.0,31933.0,0.13632608]
[1609804139035,0.28248608,31938.0,31921.0,3.7817]
[1609804140137,0.14616,31938.0,31927.0,0.13632608]
[1609804142139,0.13632608,31928.0,31927.0,0.13632608]
[1609804142837,0.13727,31930.0,31914.0,4.3154]
[1609804143837,0.14616,31938.0,31911.0,0.144]
[1609804144037,0.1459,31947.0,31920.0,3.9067]
[1609804144237,5.0922,31967.0,31920.0,3.9067]
[1609804144238,0.00964283,31948.0,31941.0,0.13632608]
[1609804145040,0.10981,31954.0,31941.0,0.13632608]
[1609804145439,0.46980135,31951.0,31941.0,0.13632608]
[1609804145641,0.46980135,31951.0,31940.0,4.4408]
[1609804146139,0.13632608,31952.0,31950.0,0.13632608]
[1609804146539,0.15104,31954.0,31950.0,0.13632608]
[1609804148140,0.13632608,31951.0,31950.0,0.13632608]
[1609804148742,0.15104,31954.0,31936.0,0.13967]
[1609804150142,0.13632608,31948.0,31947.0,0.13632608]
[1609804150442,0.15104,31954.0,31936.0,0.13967]
[1609804150642,0.15104,31954.0,31933.0,4.0162]
[1609804150850,0.275,31957.0,31933.0,4.0162]
[1609804151059,0.12062,31954.0,31928.0,0.15598]
[1609804151252,4.1249,31949.0,31927.0,1.94439406]
[1609804152144,4.1249,31949.0,31933.0,0.13632608]
[1609804152544,4.1249,31949.0,31927.0,1.94439406]
[1609804153746,4.1249,31949.0,31927.0,1.77189406]
[1609804154146,0.13632608,31928.0,31927.0,1.77189406]
[1609804154548,0.25546608,31928.0,31927.0,1.77189406]
[1609804155649,4.36476608,31928.0,31927.0,1.77189406]
[1609804156049,4.22844,31928.0,31927.0,1.77189406]
[1609804156251,4.22844,31928.0,31927.0,0.17299406]
[1609804156550,4.36476608,31928.0,31927.0,0.17299406]
[1609804157153,4.22844,31928.0,31927.0,0.17299406]
[1609804158555,4.36476608,31928.0,31927.0,0.17299406]
[1609804159457,4.22844,31928.0,31927.0,0.17299406]
[1609804160560,4.22844,31928.0,31912.0,2.13014351]
[1609804160761,4.36476608,31928.0,31912.0,2.13014351]
[1609804161563,0.25546608,31928.0,31912.0,2.13014351]
[1609804161763,4.2603,31918.0,31889.0,2.11890965]
[1609804162566,0.13632608,31903.0,31896.0,0.13632608]
[1609804164668,0.13632608,31903.0,31902.0,0.26512608]
[1609804165670,0.13327,31920.0,31902.0,4.8009]
[1609804166673,0.13327,31920.0,31917.0,0.13632608]
[1609804167071,0.11914,31928.0,31917.0,0.13632608]
[1609804167271,1.1281466,31939.0,31917.0,0.13632608]
[1609804167872,1.1281466,31939.0,31909.0,0.10374]
[1609804168273,0.1335538,31934.0,31909.0,0.10374]
[1609804168472,3.7431,31924.0,31909.0,0.10374]
[1609804168673,3.88776,31924.0,31909.0,0.10374]
[1609804168973,0.13632608,31910.0,31909.0,0.10374]
[1609804170875,3.88776,31924.0,31909.0,0.10374]
[1609804171075,0.14466,31924.0,31909.0,0.10374]
[1609804171476,0.13632608,31910.0,31909.0,0.10374]
[1609804172377,0.13632608,31910.0,31908.0,0.13632608]
[1609804173280,0.13632608,31910.0,31902.0,0.1288]
[1609804173479,0.13632608,31903.0,31895.0,0.13632608]
[1609804173779,4.9634,31919.0,31891.0,0.2817]
[1609804173979,4.9634,31919.0,31891.0,0.39829]
[1609804174681,4.9634,31919.0,31891.0,2.3277859]
[1609804175483,4.9634,31919.0,31900.0,0.13632608]
[1609804175684,4.9634,31919.0,31900.0,0.27765608]
[1609804177484,0.13632608,31901.0,31900.0,0.27765608]
[1609804177783,0.14466,31924.0,31900.0,0.27765608]
[1609804177983,0.00965261,31930.0,31903.0,5.1193]
[1609804178685,0.00965149,31935.0,31903.0,5.1193]
[1609804179386,0.02876919,31938.0,31903.0,5.1193]
[1609804179586,0.02876919,31938.0,31920.0,0.13632608]
[1609804179789,0.02876919,31938.0,31903.0,5.1193]
[1609804179987,0.14731919,31938.0,31903.0,5.1193]
[1609804180289,0.11855,31938.0,31903.0,5.1193]
[1609804180889,0.5978,31936.0,31903.0,5.1193]
[1609804181490,0.5978,31936.0,31907.0,0.13632608]
[1609804181689,0.5978,31936.0,31907.0,0.28999608]
[1609804182694,0.12252424,31938.0,31907.0,0.28999608]
[1609804183092,3.6772,31927.0,31907.0,0.28999608]
[1609804183290,3.83487,31927.0,31907.0,0.28999608]
[1609804183492,0.13632608,31908.0,31907.0,0.28999608]
[1609804183991,0.13632608,31908.0,31907.0,0.15367]
[1609804186897,0.13632608,31908.0,31900.0,0.14133]
[1609804187295,0.13632608,31908.0,31896.0,0.13632608]
[1609804187695,0.13632608,31897.0,31896.0,0.13632608]
[1609804188697,0.7303,31897.0,31891.0,0.11659]
[1609804188900,0.1444,31919.0,31887.0,1.92465817]
[1609804188901,0.14205,31912.0,31887.0,1.92465817]
[1609804189096,3.6386,31893.0,31887.0,2.08278817]
[1609804189697,0.13632608,31888.0,31887.0,2.08278817]
[1609804190099,0.13632608,31888.0,31887.0,0.15813]
[1609804190702,0.2861,31907.0,31887.0,0.15813]
[1609804191497,0.01362833,31909.0,31887.0,0.15813]
[1609804191897,0.01362833,31909.0,31897.0,0.13632608]
[1609804192898,0.14205,31912.0,31897.0,0.13632608]
[1609804193501,0.14205,31912.0,31894.0,0.1234]
[1609804193902,0.2729,31918.0,31894.0,0.1234]
[1609804194705,0.2729,31918.0,31899.0,0.13632608]
[1609804195703,0.1444,31919.0,31899.0,0.13632608]
[1609804195905,0.00963907,31923.0,31899.0,0.13632608]
[1609804196207,0.00963907,31923.0,31898.0,4.8972]
[1609804196805,0.13632608,31917.0,31916.0,0.13632608]
[1609804197404,0.13632608,31917.0,31910.0,5.1833]
[1609804198707,0.12906,31920.0,31910.0,5.1833]
[1609804199307,0.13632608,31911.0,31910.0,5.1833]
[1609804200806,0.12906,31920.0,31910.0,5.1833]
[1609804201408,0.12906,31920.0,31914.0,0.13632608]
[1609804202508,0.12906,31920.0,31912.0,4.0084]
[1609804203308,0.12906,31920.0,31914.0,0.13632608]
[1609804203508,0.15767,31927.0,31914.0,0.13632608]
[1609804203710,0.02873096,31934.0,31914.0,0.13632608]
[1609804204509,2.07929777,31961.0,31914.0,0.13632608]
[1609804204510,0.30773799,31936.0,31914.0,0.13632608]
[1609804205208,0.30773799,31936.0,31912.0,4.14133]
[1609804205409,0.13632608,31914.0,31912.0,4.14133]
[1609804205608,0.13632608,31914.0,31912.0,0.13293]
[1609804206909,0.1471,31929.0,31912.0,0.13293]
[1609804207109,0.1471,31929.0,31914.0,3.8184]
[1609804207309,0.1471,31929.0,31922.0,0.13632608]
[1609804209413,0.13632608,31923.0,31922.0,0.13632608]
[1609804209614,0.13632608,31923.0,31912.0,0.13293]
[1609804209817,0.13632608,31923.0,31911.0,4.0049]
[1609804210014,0.13632608,31923.0,31905.0,0.2881]
[1609804211314,0.1471,31929.0,31918.0,0.13632608]
[1609804211515,0.2981,31936.0,31918.0,0.13632608]
[1609804213316,0.13632608,31919.0,31918.0,0.13632608]
[1609804217819,0.10519,31931.0,31912.0,0.10751]
[1609804218020,0.10519,31931.0,31905.0,0.2881]
[1609804219419,0.13632608,31906.0,31905.0,0.2881]
[1609804221522,0.1115,31913.0,31905.0,0.2881]
[1609804221925,0.13632608,31906.0,31905.0,0.2881]
[1609804223627,0.1115,31913.0,31905.0,4.7696]
[1609804224029,0.00968219,31920.0,31905.0,4.7696]
[1609804224428,0.00968219,31920.0,31919.0,0.13632608]
[1609804224830,1.44759118,31938.0,31919.0,0.13632608]
[1609804224831,0.0096802,31927.0,31919.0,0.13632608]
[1609804225228,0.0096802,31927.0,31917.0,4.115]
[1609804225629,0.83534443,31933.0,31917.0,4.115]
[1609804225630,0.11486901,31931.0,31917.0,4.115]
[1609804226631,0.10519,31931.0,31923.0,0.13632608]
[1609804226831,0.02884651,31933.0,31923.0,0.13632608]
[1609804227232,0.00967882,31934.0,31923.0,0.13632608]
[1609804228534,0.00967882,31934.0,31917.0,4.115]
[1609804228732,0.00967882,31934.0,31918.0,0.13632608]
[1609804229132,0.00968017,31933.0,31918.0,0.13632608]
[1609804230335,0.02884155,31930.0,31918.0,0.13632608]
[1609804230739,0.02884155,31930.0,31915.0,4.4592]
[1609804231137,0.16890394,31931.0,31919.0,0.13632608]
[1609804233138,0.13632608,31920.0,31919.0,0.13632608]
[1609804236642,0.15923,31931.0,31919.0,0.13632608]
[1609804236845,0.02884025,31932.0,31919.0,4.64252608]
[1609804237046,0.00967173,31933.0,31919.0,4.5062]
[1609804237445,0.11855,31938.0,31919.0,4.5062]
[1609804237644,0.11855,31938.0,31937.0,0.13632608]
[1609804237845,0.02882179,31941.0,31937.0,5.06462608]
[1609804238448,0.00966702,31943.0,31937.0,5.06462608]
[1609804239047,0.83420669,31949.0,31937.0,5.06462608]
[1609804239048,0.02880237,31957.0,31937.0,5.06462608]
[1609804239647,0.02880237,31957.0,31953.0,0.13632608]
[1609804239847,0.02880237,31957.0,31937.0,4.9283]
[1609804240047,0.13456237,31957.0,31937.0,4.9283]
[1609804240850,0.00966366,31955.0,31937.0,4.9283]
[1609804241350,0.00966366,31955.0,31931.0,0.2708]
[1609804242355,0.00966366,31955.0,31934.0,0.13632608]
[1609804242754,0.00966366,31955.0,31931.0,0.2708]
[1609804242954,4.8288,31947.0,31923.0,0.16114]
[1609804243155,4.93627,31947.0,31915.0,0.2703]
[1609804243556,0.10747,31947.0,31858.0,0.6551]
[1609804243756,4.4303,31937.0,31900.0,4.4959]
[1609804243957,4.55212,31937.0,31900.0,4.7804]
[1609804244357,0.13632608,31919.0,31913.0,0.13632608]
[1609804244559,0.13632608,31919.0,31900.0,4.7804]
[1609804244756,0.13632608,31919.0,31914.0,2.08437865]
[1609804245559,0.14186,31920.0,31914.0,2.08437865]
[1609804245758,0.14186,31920.0,31915.0,2.08177543]
[1609804246259,0.13632608,31919.0,31915.0,2.08177543]
[1609804246963,0.13632608,31919.0,31907.0,0.13632608]
[1609804247162,0.14186,31920.0,31900.0,4.7804]
[1609804247362,0.14186,31920.0,31900.0,0.2845]
[1609804247560,4.9403,31919.0,31900.0,0.2845]
[1609804248261,0.13632608,31903.0,31902.0,0.13632608]
[1609804249062,4.9403,31919.0,31900.0,0.2845]
[1609804249361,4.9403,31919.0,31900.0,0.42985]
[1609804250363,0.13632608,31901.0,31900.0,0.56617608]
[1609804251865,4.9403,31919.0,31900.0,0.56617608]
[1609804252365,4.9403,31919.0,31906.0,0.13632608]
[1609804252865,0.14186,31920.0,31906.0,0.13632608]
[1609804253065,0.31067175,31924.0,31906.0,0.13632608]
[1609804254366,0.13632608,31907.0,31906.0,0.13632608]
[1609804255068,0.13632608,31907.0,31900.0,0.42985]
[1609804255270,4.7533,31915.0,31900.0,0.42985]
[1609804256368,0.13632608,31901.0,31900.0,0.42985]
[1609804259772,4.1767,31905.0,31900.0,0.42985]
[1609804260375,0.13632608,31901.0,31900.0,0.42985]
[1609804262277,0.13632608,31901.0,31900.0,0.14535]
[1609804262477,0.13632608,31901.0,31887.0,0.13632608]
[1609804264383,4.2129,31902.0,31893.0,0.13632608]
[1609804264583,0.12478,31912.0,31893.0,0.13632608]
[1609804264784,5.0426,31903.0,31893.0,0.13632608]
[1609804266486,0.13632608,31894.0,31893.0,0.13632608]
[1609804267187,5.0426,31903.0,31889.0,0.10613]
[1609804268394,5.0426,31903.0,31893.0,0.13632608]
[1609804268592,5.0426,31903.0,31889.0,0.10613]
[1609804269193,0.15877,31905.0,31889.0,0.10613]
[1609804269795,0.15877,31905.0,31884.0,0.1501]
[1609804269995,4.4428,31900.0,31884.0,0.1501]
[1609804270395,0.13632608,31885.0,31884.0,0.1501]
[1609804270795,5.30262608,31885.0,31884.0,0.1501]
[1609804270998,5.30262608,31885.0,31865.0,1.93413619]
[1609804271396,5.30262608,31885.0,31859.0,4.1103]
[1609804272396,5.1663,31885.0,31868.0,0.13632608]
[1609804272695,3.5282,31881.0,31868.0,0.13632608]
[1609804274100,0.14165,31883.0,31868.0,0.13632608]
[1609804274295,4.0363,31876.0,31868.0,0.13632608]
[1609804274498,0.13632608,31869.0,31868.0,0.13632608]
[1609804275196,0.75022608,31869.0,31865.0,0.15618]
[1609804275599,4.379,31866.0,31865.0,0.15618]
[1609804276799,4.379,31866.0,31850.0,1.94370652]
[1609804277200,3.6177,31851.0,31850.0,1.94370652]
[1609804278200,3.6177,31851.0,31850.0,1.48060652]
[1609804278401,3.75402608,31851.0,31834.0,2.12945943]
[1609804278601,0.13632608,31851.0,31834.0,2.12945943]
[1609804279201,0.14319,31854.0,31834.0,2.12945943]
[1609804280206,0.14319,31854.0,31825.0,0.2826]
[1609804280207,0.01354062,31853.0,31825.0,0.2826]
[1609804280403,0.13632608,31826.0,31825.0,0.2826]
[1609804280603,0.13632608,31826.0,31819.0,0.13215]
[1609804281004,0.6571,31836.0,31819.0,0.13215]
[1609804281611,0.11769,31837.0,31808.0,0.14422]
[1609804281806,3.81,31819.0,31808.0,0.14422]
[1609804282207,0.12869,31820.0,31808.0,0.14422]
[1609804282408,0.13632608,31809.0,31808.0,0.14422]
[1609804282609,0.13632608,31809.0,31800.0,0.13632608]
[1609804283309,0.529,31808.0,31800.0,0.13632608]
[1609804283708,0.13632608,31809.0,31800.0,0.13632608]
[1609804283910,0.11558,31813.0,31797.0,0.11619]
[1609804284407,0.13632608,31799.0,31797.0,0.25251608]
[1609804285508,4.6872,31810.0,31797.0,0.25251608]
[1609804286412,4.6872,31810.0,31801.0,0.13632608]
[1609804286609,4.6872,31810.0,31797.0,0.11619]
[1609804287010,4.6872,31810.0,31791.0,0.2706]
[1609804288312,0.11558,31813.0,31791.0,0.2706]
[1609804288515,0.12869,31820.0,31791.0,0.2706]
[1609804288714,0.01333961,31833.0,31792.0,0.1771]
[1609804288915,0.01333961,31833.0,31799.0,3.6146]
[1609804289113,0.01333961,31833.0,31832.0,0.13632608]
[1609804289313,0.01333961,31833.0,31814.0,0.11806]
[1609804289514,0.01332757,31840.0,31814.0,0.11806]
[1609804289914,0.01332757,31840.0,31816.0,3.9481]
[1609804290114,0.0038862,31852.0,31816.0,3.9481]
[1609804290514,0.0038862,31852.0,31814.0,0.11806]
[1609804290716,4.8773,31853.0,31814.0,0.11806]
[1609804291115,4.8773,31853.0,31850.0,0.13632608]
[1609804291718,4.8773,31853.0,31816.0,0.5112]